fUST/lending_fUST_20240308
["ID","MTS","AMOUNT","RATE_DAILY","PERIOD"]
[317602597,1709868649531,-500.0,0.00022739,2]
[317602599,1709868649541,-562.7,0.00022739,2]
[317602601,1709868649550,-500.0,0.00022739,2]
[317602603,1709868649560,-562.7,0.00022739,2]
[317602605,1709868649571,-500.0,0.00022739,2]
[317602607,1709868649580,-562.7,0.00022739,2]
[317602609,1709868649590,-500.0,0.00022739,2]
[317602611,1709868649600,-500.0,0.00022739,2]
[317602613,1709868649609,-562.7,0.00022739,2]
[317602615,1709868649618,-500.0,0.00022739,2]
[317602617,1709868649626,-562.7,0.00022739,2]
[317602619,1709868649635,-500.0,0.00022739,2]
[317602621,1709868649645,-562.7,0.00022739,2]
[317602623,1709868649654,-500.0,0.00022739,2]
[317602625,1709868649664,-562.7,0.00022739,2]
[317602627,1709868649673,-241.4711672,0.00022739,2]
[317602629,1709868649682,-562.7,0.00022739,2]
[317602631,1709868649691,-562.7,0.00022739,2]
[317602633,1709868649701,-562.7,0.00022739,2]
[317602635,1709868649710,-562.7,0.00022739,2]
[317602636,1709868649721,-562.7,0.00022739,2]
[317602639,1709868649731,-562.7,0.00022739,2]
[317602641,1709868649741,-562.7,0.00022739,2]
[317602642,1709868649750,-562.7,0.00022739,2]
[317602644,1709868649759,-500.0,0.00022739,2]
[317602646,1709868649769,-562.7,0.00022739,2]
[317602648,1709868649778,-562.7,0.00022739,2]
[317602650,1709868649787,-500.0,0.00022739,2]
[317602652,1709868649796,-562.7,0.00022739,2]
[317602654,1709868649805,-500.0,0.00022739,2]
[317602656,1709868649814,-562.7,0.00022739,2]
[317602658,1709868649823,-500.0,0.00022739,2]
[317602660,1709868649832,-500.0,0.00022739,2]
[317602662,1709868649841,-562.70681403,0.00022739,2]
[317602664,1709868649850,-500.0,0.00022739,2]
[317602666,1709868649859,-500.0,0.00022739,2]
[317602668,1709868649868,-500.0,0.00022739,2]
[317602670,1709868649877,-500.0,0.00022739,2]
[317602672,1709868649885,-500.0,0.00022739,2]
[317602673,1709868649894,-500.0,0.00022739,2]
[317602675,1709868649903,-500.0,0.00022739,2]
[317602677,1709868649912,-500.0,0.00022739,2]
[317602679,1709868649921,-500.0,0.00022739,2]
[317602681,1709868649930,-500.0,0.00022739,2]
[317602683,1709868649939,-500.0,0.00022739,2]
[317602685,1709868649948,-502.44003634,0.00022739,2]
[317602687,1709868649956,-500.0,0.00022739,2]
[317602689,1709868649967,-174.54,0.00022739,2]
[317602691,1709868649975,-500.0,0.00022739,2]
[317602693,1709868649984,-500.0,0.00022739,2]
[317602694,1709868649993,-274.05,0.00022739,2]
[317602696,1709868650002,-500.0,0.00022739,2]
[317602698,1709868650011,-500.0,0.00022739,2]
[317602700,1709868650022,-500.0,0.00022739,2]
[317602702,1709868650032,-500.0,0.00022739,2]
[317602704,1709868650040,-500.0,0.00022739,2]
[317602706,1709868650050,-500.0,0.00022739,2]
[317602708,1709868650059,-500.0,0.00022739,2]
[317602710,1709868650069,-163.36577535,0.00022739,2]
[317602712,1709868650078,-500.0,0.00022739,2]
[317602714,1709868650088,-517.24924783,0.00022739,2]
[317602716,1709868650097,-500.0,0.00022739,2]
[317602718,1709868650106,-500.0,0.00022739,2]
[317602719,1709868650116,-500.0,0.00022739,2]
[317602721,1709868650128,-500.0,0.00022739,2]
[317602723,1709868650137,-500.0,0.00022739,2]
[317602725,1709868650146,-500.0,0.00022739,2]
[317602727,1709868650155,-500.0,0.00022739,2]
[317602729,1709868650165,-500.0,0.00022739,2]
[317602731,1709868650174,-500.0,0.00022739,2]
[317602733,1709868650184,-500.0,0.00022739,2]
[317602735,1709868650193,-435.32474539,0.00022739,2]
[317602737,1709868650202,-3363.83,0.00022739,2]
[317602739,1709868650211,-3363.83,0.00022739,2]
[317602741,1709868650221,-3363.83,0.00022739,2]
[317602743,1709868650230,-3363.83,0.00022739,2]
[317602744,1709868650240,-3363.83,0.00022739,2]
[317602746,1709868650249,-3363.83,0.00022739,2]
[317602748,1709868650257,-1302.1224394,0.00022739,2]
[317602837,1709868651228,-2061.7075606,0.00022739,2]
[317602839,1709868651237,-3363.83,0.00022739,2]
[317602841,1709868651246,-3363.83,0.00022739,2]
[317602842,1709868651255,-3363.83,0.00022739,2]
[317602844,1709868651265,-3363.83,0.00022739,2]
[317602846,1709868651274,-3363.83,0.00022739,2]
[317602848,1709868651283,-3363.83,0.00022739,2]
[317602849,1709868651292,-3363.83,0.00022739,2]
[317602851,1709868651301,-3363.83,0.00022739,2]
[317602853,1709868651311,-3363.83,0.00022739,2]
[317602855,1709868651320,-3363.83,0.00022739,2]
[317602856,1709868651329,-3363.83,0.00022739,2]
[317602858,1709868651338,-3363.83,0.00022739,2]
[317602860,1709868651348,-3363.83,0.00022739,2]
[317602862,1709868651357,-500.0,0.00022739,2]
[317602864,1709868651366,-3363.83,0.00022739,2]
[317602865,1709868651376,-500.0,0.00022739,2]
[317602867,1709868651386,-3363.83,0.00022739,2]
[317602869,1709868651394,-500.0,0.00022739,2]
[317602871,1709868651403,-3363.83,0.00022739,2]
[317602873,1709868651412,-500.0,0.00022739,2]
[317602875,1709868651421,-3363.93440745,0.00022739,2]
[317602876,1709868651431,-500.0,0.00022739,2]
[317602878,1709868651440,-500.0,0.00022739,2]
[317602880,1709868651448,-500.0,0.00022739,2]
[317602882,1709868651457,-500.0,0.00022739,2]
[317602884,1709868651467,-500.0,0.00022739,2]
[317602885,1709868651476,-619.67965244,0.00022739,2]
[317602887,1709868651485,-500.0,0.00022739,2]
[317602889,1709868651494,-500.0,0.00022739,2]
[317602891,1709868651503,-500.0,0.00022739,2]
[317602892,1709868651512,-500.0,0.00022739,2]
[317602894,1709868651521,-500.0,0.00022739,2]
[317602896,1709868651531,-500.0,0.00022739,2]
[317602898,1709868651540,-500.0,0.00022739,2]
[317602900,1709868651549,-500.0,0.00022739,2]
[317602902,1709868651560,-500.0,0.00022739,2]
[317602904,1709868651570,-500.0,0.00022739,2]
[317602906,1709868651579,-500.0,0.00022739,2]
[317602908,1709868651589,-500.0,0.00022739,2]
[317602909,1709868651598,-500.0,0.00022739,2]
[317602911,1709868651608,-500.0,0.00022739,2]
[317602913,1709868651617,-500.0,0.00022739,2]
[317602915,1709868651626,-500.0,0.00022739,2]
[317602917,1709868651636,-500.0,0.00022739,2]
[317602919,1709868651645,-500.0,0.00022739,2]
[317602921,1709868651654,-500.0,0.00022739,2]
[317602922,1709868651663,-500.0,0.00022739,2]
[317602924,1709868651672,-500.0,0.00022739,2]
[317602926,1709868651682,-500.0,0.00022739,2]
[317602928,1709868651691,-500.0,0.00022739,2]
[317602930,1709868651700,-500.0,0.00022739,2]
[317602931,1709868651710,-536.69450809,0.00022739,2]
[317602933,1709868651720,-500.0,0.00022739,2]
[317602935,1709868651729,-500.0,0.00022739,2]
[317602937,1709868651738,-500.0,0.00022739,2]
[317602939,1709868651747,-500.0,0.00022739,2]
[317602940,1709868651757,-500.0,0.00022739,2]
[317602942,1709868651766,-500.0,0.00022739,2]
[317602944,1709868651776,-500.0,0.00022739,2]
[317602946,1709868651786,-500.0,0.00022739,2]
[317602948,1709868651794,-500.0,0.00022739,2]
[317602950,1709868651803,-500.0,0.00022739,2]
[317602951,1709868651812,-550.77566838,0.00022739,2]
[317602953,1709868651822,-500.0,0.00022739,2]
[317602955,1709868651832,-500.0,0.00022739,2]
[317602957,1709868651841,-500.0,0.00022739,2]
[317602959,1709868651850,-500.0,0.00022739,2]
[317602960,1709868651859,-241.82784369,0.00022739,2]
[317602962,1709868651868,-1500.0,0.00022763,2]
[317602964,1709868651877,-170.90429389,0.00022769,2]
[317602966,1709868651886,-1500.0,0.00022788,2]
[317602968,1709868651895,-238.17924632,0.000228,6]
[317602969,1709868651905,-1500.0,0.00022813,2]
[317602971,1709868651914,-12500.0,0.00022836,2]
[317602973,1709868651923,-12500.0,0.00022837,2]
[317602975,1709868651932,-12500.0,0.00022838,2]
[317602977,1709868651941,-12500.0,0.00022838,2]
[317602978,1709868651950,-1500.0,0.00022838,2]
[317602980,1709868651962,-12500.0,0.0002284,2]
[317602983,1709868651978,-12500.0,0.00022841,2]
[317602985,1709868651992,-5867.78143362,0.00022841,2]
[317602987,1709868652009,-6632.21856638,0.00022841,2]
[317602989,1709868652023,-9365.49803484,0.00022847,2]
[317602991,1709868652040,-427.63664462,0.00022847,2]
[317602994,1709868652055,-2236.21874578,0.00022847,2]
[317602996,1709868652074,-470.64657476,0.00022847,2]
[317602999,1709868652087,-12500.0,0.00022847,2]
[317603001,1709868652099,-12500.0,0.0002285,2]
[317603003,1709868652111,-12500.0,0.00022852,2]
[317603005,1709868652124,-12500.0,0.0002286,2]
[317603007,1709868652137,-12500.0,0.00022863,2]
[317603009,1709868652148,-1500.0,0.00022863,2]
[317603011,1709868652161,-6284.94,0.00022864,2]
[317603014,1709868652174,-12500.0,0.00022865,2]
[317603016,1709868652187,-12500.0,0.00022865,2]
[317603018,1709868652197,-12500.0,0.00022868,2]
[317603020,1709868652213,-12500.0,0.00022868,2]
[317603022,1709868652225,-12500.0,0.00022874,2]
[317603024,1709868652238,-12500.0,0.00022881,2]
[317603027,1709868652249,-166.276254,0.00022883,2]
[317603029,1709868652262,-1500.0,0.00022888,2]
[317603031,1709868652275,-133737.15314777,0.00022899,2]
[317603033,1709868652289,-151.0,0.000229,2]
[317603035,1709868652302,-151.0,0.000229,2]
[317603038,1709868652315,-581.0,0.000229,2]
[317603040,1709868652329,-1500.0,0.00022913,2]
[317603042,1709868652343,-1500.0,0.00022938,2]
[317603044,1709868652353,-1500.0,0.00022964,2]
[317603046,1709868652363,-154.752193,0.00022978,2]
[317603048,1709868652374,-500.0,0.00022984,2]
[317603050,1709868652386,-741.76,0.00022984,2]
[317603052,1709868652398,-655.78,0.00022984,2]
[317603054,1709868652410,-500.0,0.00022984,2]
[317603056,1709868652421,-500.0,0.00022984,2]
[317603059,1709868652433,-500.0,0.00022984,2]
[317603061,1709868652445,-500.0,0.00022984,2]
[317603063,1709868652456,-500.0,0.00022984,2]
[317603065,1709868652466,-844.5,0.00022984,2]
[317603066,1709868652477,-2320.99,0.00022984,2]
[317603069,1709868652488,-500.15204944,0.00022984,2]
[317603071,1709868652499,-500.0,0.00022985,2]
[317603073,1709868652510,-500.0,0.00022985,2]
[317603075,1709868652521,-500.0,0.00022985,2]
[317603077,1709868652532,-500.0,0.00022985,2]
[317603079,1709868652543,-500.0,0.00022985,2]
[317603081,1709868652554,-4204.58,0.00022985,2]
[317603083,1709868652565,-500.0,0.00022985,2]
[317603085,1709868652576,-500.0,0.00022985,2]
[317603087,1709868652587,-859.43,0.00022985,2]
[317603089,1709868652598,-1406.47,0.00022985,2]
[317603091,1709868652609,-500.0,0.00022985,2]
[317603093,1709868652620,-594.30945278,0.00022985,2]
[317603095,1709868652632,-500.0,0.00022985,2]
[317603097,1709868652644,-500.0,0.00022985,2]
[317603099,1709868652655,-40327.92676735,0.00022986,2]
[317603101,1709868652665,-10902.4548079,0.00022986,2]
[317603103,1709868652674,-2330.39971518,0.00022986,2]
[317603105,1709868652683,-180.41518048,0.00022986,2]
[317603107,1709868652692,-1000.0,0.00022986,7]
[317603109,1709868652701,-1036.67323923,0.00022986,2]
[317603110,1709868652710,-1040.21613147,0.00022986,2]
[317603112,1709868652720,-222.21966574,0.00022986,2]
[317603114,1709868652729,-1000.0,0.00022986,7]
[317603116,1709868652739,-794.69733235,0.00022986,2]
[317603118,1709868652749,-1500.0,0.00022989,2]
[317603120,1709868652761,-302.98919803,0.00022998,2]
[317603122,1709868652771,-286.91104301,0.00022998,2]
[317603124,1709868652781,-231.88564539,0.00022998,2]
[317603126,1709868652790,-500.0,0.00022998,2]
[317603128,1709868652799,-500.0,0.00022998,2]
[317603129,1709868652808,-500.0,0.00022998,2]
[317603131,1709868652818,-261.95671656,0.00022998,2]
[317603133,1709868652828,-741.76,0.00022998,2]
[317603135,1709868652837,-741.76,0.00022998,2]
[317603137,1709868652846,-741.76,0.00022998,2]
[317603139,1709868652856,-741.76,0.00022998,2]
[317603141,1709868652865,-741.76,0.00022998,2]
[317603143,1709868652874,-741.76,0.00022998,2]
[317603145,1709868652883,-741.76,0.00022998,2]
[317603146,1709868652892,-741.81880453,0.00022998,2]
[317603148,1709868652900,-655.78,0.00022998,2]
[317603150,1709868652910,-655.78,0.00022998,2]
[317603152,1709868652919,-655.78,0.00022998,2]
[317603168,1709868653067,-655.78,0.00022998,2]
[317603170,1709868653079,-655.78,0.00022998,2]
[317603172,1709868653088,-655.78,0.00022998,2]
[317603173,1709868653097,-655.78,0.00022998,2]
[317603175,1709868653106,-655.82805229,0.00022998,2]
[317603177,1709868653116,-581.93137405,0.00022998,2]
[317603179,1709868653126,-500.0,0.00022998,2]
[317603181,1709868653135,-500.0,0.00022998,2]
[317603183,1709868653143,-500.0,0.00022998,2]
[317603185,1709868653152,-246.38332582,0.00022998,2]
[317603187,1709868653162,-607.31991356,0.00022998,2]
[317603189,1709868653170,-500.0,0.00022998,2]
[317603190,1709868653179,-500.0,0.00022998,2]
[317603192,1709868653188,-500.0,0.00022998,2]
[317603194,1709868653197,-500.0,0.00022998,2]
[317603196,1709868653206,-500.0,0.00022998,2]
[317603198,1709868653216,-500.0,0.00022998,2]
[317603200,1709868653225,-500.0,0.00022998,2]
[317603202,1709868653235,-374.05296995,0.00022998,2]
[317603204,1709868653244,-500.0,0.00022998,2]
[317603206,1709868653254,-500.0,0.00022998,2]
[317603208,1709868653263,-500.0,0.00022998,2]
[317603209,1709868653272,-442.84800489,0.00022998,2]
[317603211,1709868653282,-844.5,0.00022998,2]
[317603213,1709868653290,-844.5,0.00022998,2]
[317603215,1709868653300,-844.5,0.00022998,2]
[317603217,1709868653308,-844.5,0.00022998,2]
[317603219,1709868653317,-844.5,0.00022998,2]
[317603220,1709868653326,-844.5,0.00022998,2]
[317603222,1709868653335,-844.5,0.00022998,2]
[317603224,1709868653344,-844.5,0.00022998,2]
[317603226,1709868653353,-2320.99,0.00022998,2]
[317603228,1709868653362,-2320.99,0.00022998,2]
[317603230,1709868653370,-2320.99,0.00022998,2]
[317603232,1709868653379,-2320.99,0.00022998,2]
[317603234,1709868653388,-2320.99,0.00022998,2]
[317603235,1709868653398,-2320.99,0.00022998,2]
[317603237,1709868653407,-2320.99,0.00022998,2]
[317603239,1709868653416,-2321.13583577,0.00022998,2]
[317603241,1709868653426,-164.843398,0.00022998,2]
[317603243,1709868653435,-164.843398,0.00022998,2]
[317603245,1709868653444,-500.0,0.00022999,2]
[317603247,1709868653453,-308.3,0.00022999,2]
[317603249,1709868653461,-500.0,0.00022999,2]
[317603250,1709868653470,-500.0,0.00022999,2]
[317603252,1709868653479,-500.0,0.00022999,2]
[317603254,1709868653488,-500.0,0.00022999,2]
[317603256,1709868653497,-500.0,0.00022999,2]
[317603258,1709868653506,-500.0,0.00022999,2]
[317603260,1709868653516,-500.0,0.00022999,2]
[317603262,1709868653525,-500.0,0.00022999,2]
[317603264,1709868653534,-500.0,0.00022999,2]
[317603265,1709868653543,-500.0,0.00022999,2]
[317603267,1709868653551,-500.0,0.00022999,2]
[317603269,1709868653560,-500.0,0.00022999,2]
[317603271,1709868653570,-500.0,0.00022999,2]
[317603273,1709868653580,-500.0,0.00022999,2]
[317603275,1709868653589,-500.0,0.00022999,2]
[317603277,1709868653598,-500.0,0.00022999,2]
[317603279,1709868653607,-500.0,0.00022999,2]
[317603281,1709868653616,-500.0,0.00022999,2]
[317603282,1709868653625,-267.02601248,0.00022999,2]
[317603284,1709868653634,-500.0,0.00022999,2]
[317603286,1709868653643,-500.0,0.00022999,2]
[317603288,1709868653651,-500.0,0.00022999,2]
[317603290,1709868653660,-500.0,0.00022999,2]
[317603292,1709868653670,-500.0,0.00022999,2]
[317603294,1709868653679,-500.0,0.00022999,2]
[317603295,1709868653688,-500.0,0.00022999,2]
[317603297,1709868653696,-500.0,0.00022999,2]
[317603299,1709868653705,-245.22277571,0.00022999,2]
[317603301,1709868653715,-151.0,0.00022999,2]
[317603303,1709868653723,-176.84,0.00022999,2]
[317603305,1709868653732,-296.24130821,0.00022999,2]
[317603307,1709868653741,-4204.58,0.00022999,2]
[317603308,1709868653749,-4204.58,0.00022999,2]
[317603310,1709868653758,-4204.58,0.00022999,2]
[317603312,1709868653767,-4204.58,0.00022999,2]
[317603314,1709868653776,-4204.58,0.00022999,2]
[317603316,1709868653785,-4204.58,0.00022999,2]
[317603318,1709868653794,-4204.58,0.00022999,2]
[317603320,1709868653804,-4204.58,0.00022999,2]
[317603322,1709868653812,-4204.58,0.00022999,2]
[317603324,1709868653822,-4204.58,0.00022999,2]
[317603325,1709868653831,-4204.58,0.00022999,2]
[317603327,1709868653840,-3715.29852337,0.00022999,2]
[317603344,1709868654070,-184.24203833,0.0002219,2]
[317603345,1709868654079,-500.0,0.00022739,2]
[317603346,1709868654088,-489.28147663,0.00022999,2]
[317603347,1709868654097,-4204.58,0.00022999,2]
[317603348,1709868654108,-474.16549706,0.00022999,2]
[317603349,1709868654119,-3730.41450294,0.00022999,2]
[317603350,1709868654128,-565.9586979,0.00022999,2]
[317603351,1709868654168,-184.24203833,0.00021968,2]
[317603352,1709868654177,-1264.3085636,0.00022738,2]
[317603353,1709868654186,-3638.6213021,0.00022999,2]
[317603354,1709868654194,-4204.58,0.00022999,2]
[317603355,1709868654204,-4204.58,0.00022999,2]
[317603356,1709868654213,-4204.58,0.00022999,2]
[317603357,1709868654222,-4204.58,0.00022999,2]
[317603358,1709868654231,-4204.58,0.00022999,2]
[317603359,1709868654240,-4204.58,0.00022999,2]
[317603360,1709868654252,-3761.07441392,0.00022999,2]
[317603361,1709868654263,-443.65649262,0.00022999,2]
[317603362,1709868654272,-16.34350738,0.00022999,2]
[317604109,1709869410716,331.16400837,0.00019945,2]
[317604110,1709869419106,331.16400837,0.00019945,2]
[317604111,1709869430372,502.24832931,0.00019945,2]
[317604112,1709869444376,502.99393223,0.00019945,2]
[317604114,1709869609038,383.59506649,0.000189,2]
[317604161,1709869837957,-331.16400837,0.00020153,2]
[317604163,1709869837965,-331.16400837,0.00020154,2]
[317604165,1709869837974,-398.0,0.00022,2]
[317604167,1709869837983,-875.47035113,0.00022191,2]
[317604168,1709869837992,-398.0,0.00022192,2]
[317604170,1709869838002,-7142.07557845,0.00022528,3]
[317604172,1709869838011,-2039.70236139,0.00022529,2]
[317604174,1709869838020,-153.651142,0.00022603,2]
[317604176,1709869838028,-306.8430552,0.000227,2]
[317604178,1709869838037,-194.91675493,0.00022737,2]
[317604180,1709869838046,-14073.23399612,0.00022737,2]
[317604182,1709869838055,-500.0,0.00022738,2]
[317604184,1709869838065,-500.0,0.00022738,2]
[317604186,1709869838073,-357.86073926,0.00022738,2]
[317604188,1709869838082,-475.5291798,0.00022738,2]
[317604190,1709869838091,-410.47332169,0.00022738,2]
[317604192,1709869838100,-500.0,0.00022738,2]
[317604194,1709869838109,-500.0,0.00022738,2]
[317604196,1709869838118,-500.0,0.00022738,2]
[317604198,1709869838127,-500.0,0.00022738,2]
[317604200,1709869838136,-500.0,0.00022738,2]
[317604202,1709869838146,-500.0,0.00022738,2]
[317604204,1709869838155,-500.0,0.00022738,2]
[317604206,1709869838164,-500.0,0.00022738,2]
[317604208,1709869838174,-500.0,0.00022738,2]
[317604210,1709869838184,-497.55944602,0.00022738,2]
[317604212,1709869838194,-500.0,0.00022738,2]
[317604214,1709869838204,-500.0,0.00022738,2]
[317604216,1709869838214,-500.0,0.00022738,2]
[317604218,1709869838223,-500.0,0.00022738,2]
[317604220,1709869838232,-279.70872405,0.00022739,3]
[317604222,1709869838241,-500.0,0.00022739,2]
[317604224,1709869838250,-500.0,0.00022739,2]
[317604226,1709869838260,-485.55804882,0.00022739,2]
[317604228,1709869838269,-500.0,0.00022739,2]
[317604230,1709869838278,-500.0,0.00022739,2]
[317604232,1709869838287,-500.0,0.00022739,2]
[317604234,1709869838297,-438.21,0.00022739,2]
[317604236,1709869838306,-500.0,0.00022739,2]
[317604238,1709869838315,-500.0,0.00022739,2]
[317604240,1709869838324,-500.0,0.00022739,2]
[317604242,1709869838333,-500.0,0.00022739,2]
[317604244,1709869838342,-500.0,0.00022739,2]
[317604246,1709869838351,-600.79720162,0.00022739,2]
[317604248,1709869838360,-500.0,0.00022739,2]
[317604249,1709869838371,-282.94,0.00022739,2]
[317604251,1709869838383,-500.0,0.00022739,2]
[317604253,1709869838391,-500.0,0.00022739,2]
[317604255,1709869838401,-500.0,0.00022739,2]
[317604257,1709869838410,-500.0,0.00022739,2]
[317604259,1709869838419,-320.94,0.00022739,2]
[317604261,1709869838429,-500.0,0.00022739,2]
[317604263,1709869838439,-500.0,0.00022739,2]
[317604265,1709869838449,-192.76,0.00022739,2]
[317604266,1709869838458,-500.0,0.00022739,2]
[317604268,1709869838468,-247.11,0.00022739,2]
[317604271,1709869838479,-500.0,0.00022739,2]
[317604272,1709869838488,-621.61366168,0.00022739,2]
[317604273,1709869838498,-500.0,0.00022739,2]
[317604275,1709869838508,-500.0,0.00022739,2]
[317604277,1709869838516,-500.0,0.00022739,2]
[317604279,1709869838526,-500.0,0.00022739,2]
[317604281,1709869838536,-500.0,0.00022739,2]
[317604283,1709869838546,-500.0,0.00022739,2]
[317604285,1709869838554,-160.81831443,0.00022739,2]
[317604287,1709869838563,-500.0,0.00022739,2]
[317604289,1709869838572,-500.0,0.00022739,2]
[317604290,1709869838582,-500.0,0.00022739,2]
[317604293,1709869838592,-500.0,0.00022739,2]
[317604294,1709869838601,-500.0,0.00022739,2]
[317604296,1709869838610,-359.84,0.00022739,2]
[317604298,1709869838619,-284.92552677,0.00022739,2]
[317604300,1709869838628,-500.0,0.00022739,2]
[317604302,1709869838638,-544.91484702,0.00022739,2]
[317604304,1709869838647,-500.0,0.00022739,2]
[317604306,1709869838657,-500.0,0.00022739,2]
[317604308,1709869838667,-500.0,0.00022739,2]
[317604310,1709869838677,-500.0,0.00022739,2]
[317604312,1709869838686,-500.0,0.00022739,2]
[317604314,1709869838695,-500.0,0.00022739,2]
[317604316,1709869838704,-500.0,0.00022739,2]
[317604318,1709869838713,-628.99671492,0.00022739,2]
[317604320,1709869838722,-500.0,0.00022739,2]
[317604322,1709869838731,-500.0,0.00022739,2]
[317604324,1709869838742,-500.0,0.00022739,2]
[317604326,1709869838752,-500.0,0.00022739,2]
[317604328,1709869838762,-500.0,0.00022739,2]
[317604330,1709869838772,-598.95792449,0.00022739,2]
[317604332,1709869838780,-500.0,0.00022739,2]
[317604334,1709869838789,-500.0,0.00022739,2]
[317604336,1709869838799,-481.51280069,0.00022739,2]
[317604338,1709869838809,-500.0,0.00022739,2]
[317604340,1709869838818,-500.0,0.00022739,2]
[317604342,1709869838827,-500.0,0.00022739,2]
[317604344,1709869838836,-225.02,0.00022739,2]
[317604346,1709869838845,-500.0,0.00022739,2]
[317604348,1709869838854,-500.0,0.00022739,2]
[317604350,1709869838863,-500.0,0.00022739,2]
[317604352,1709869838872,-500.0,0.00022739,2]
[317604354,1709869838881,-307.74,0.00022739,2]
[317604356,1709869838892,-500.0,0.00022739,2]
[317604358,1709869838902,-500.0,0.00022739,2]
[317604360,1709869838911,-440.07769635,0.00022739,2]
[317604362,1709869838920,-500.0,0.00022739,2]
[317604364,1709869838929,-500.0,0.00022739,2]
[317604366,1709869838938,-500.0,0.00022739,2]
[317604367,1709869838947,-500.0,0.00022739,2]
[317604369,1709869838956,-174.54,0.00022739,2]
[317604371,1709869838966,-500.0,0.00022739,2]
[317604373,1709869838975,-500.0,0.00022739,2]
[317604375,1709869838984,-274.05,0.00022739,2]
[317604377,1709869838993,-500.0,0.00022739,30]
[317604379,1709869839002,-568.25529583,0.00022739,30]
[317604381,1709869839011,-500.0,0.00022739,2]
[317604383,1709869839020,-500.0,0.00022739,2]
[317604385,1709869839029,-500.42789894,0.00022739,2]
[317604387,1709869839038,-500.0,0.00022739,2]
[317604389,1709869839048,-500.0,0.00022739,2]
[317604391,1709869839057,-500.0,0.00022739,2]
[317604393,1709869839067,-500.0,0.00022739,2]
[317604395,1709869839076,-158.72,0.00022739,2]
[317604397,1709869839085,-500.0,0.00022739,2]
[317604399,1709869839094,-500.0,0.00022739,2]
[317604401,1709869839102,-500.0,0.00022739,2]
[317604403,1709869839112,-500.0,0.00022739,2]
[317604405,1709869839121,-500.0,0.00022739,2]
[317604407,1709869839130,-500.0,0.00022739,2]
[317604409,1709869839139,-500.0,0.00022739,2]
[317604411,1709869839148,-490.66,0.00022739,2]
[317604413,1709869839157,-500.0,0.00022739,2]
[317604414,1709869839166,-300.73187563,0.00022739,2]
[317604417,1709869839176,-500.0,0.00022739,2]
[317604418,1709869839186,-500.0,0.00022739,2]
[317604420,1709869839195,-500.0,0.00022739,2]
[317604422,1709869839205,-500.0,0.00022739,2]
[317604424,1709869839214,-500.0,0.00022739,2]
[317604426,1709869839223,-500.0,0.00022739,2]
[317604428,1709869839233,-500.0,0.00022739,2]
[317604431,1709869839242,-433.25,0.00022739,2]
[317604432,1709869839251,-500.0,0.00022739,2]
[317604434,1709869839260,-878.47,0.00022739,2]
[317604436,1709869839269,-878.47,0.00022739,2]
[317604438,1709869839278,-878.47,0.00022739,2]
[317604440,1709869839288,-878.47,0.00022739,2]
[317604443,1709869839298,-878.47,0.00022739,2]
[317604445,1709869839307,-878.47,0.00022739,2]
[317604446,1709869839316,-878.47,0.00022739,2]